[Event "Eurasia Open Cup 2019"]
[Site "Ekaterinburg"]
[Date "2019.08.06"]
[Round "6.43"]
[White "Pozin, Sergey"]
[Black "Grebnev, Aleksey"]
[Result "1/2-1/2"]
[ECO "E61"]
[WhiteElo "2299"]
[BlackElo "2093"]
[Annotator "NA"]
[PlyCount "109"]
[EventDate "2019.07.31"]
[EventType "swiss"]
[EventCountry "RUS"]
[SourceTitle "playchess.com"]
[Source "ChessBase"]
[SourceQuality "1"]
[TimeControl "5400+30"]

1. d4 {[%emt 0:00:00]} Nf6 {[%emt 0:00:00]} 2. c4 {[%emt 0:00:00]} g6 {[%emt 0:00:00]} 3. Nc3 {[%emt 0:00:00]} Bg7 {[%emt 0:00:00]} 4. Nf3 {[%emt 0:00:00]} O-O {[%emt 0:00:00]} 5. Bg5 {[%emt 0:00:05]} d6 {[%emt 0:00:00]} 6. e3 {[%emt 0:00:10]} h6 {[%emt 0:00:00]} 7. Bh4 {[%emt 0:00:05]} g5 {[%emt 0:00:05]} 8. Bg3 {[%emt 0:00:05]} Nh5 {[%emt 0:00:05]} 9. Qc2 {[%emt 0:04:08]} c5 {[%emt 0:01:31]} 10. dxc5 {[%emt 0:00:47]} dxc5 {[%emt 0:00:20]} 11. Be5 {[%emt 0:01:36]} Nc6 {[%emt 0:00:56]} 12. Rd1 {[%emt 0:01:01]} Qa5 {[%emt 0:01:01]} 13. Bxg7 {[%emt 0:00:10]} Nxg7 {[%emt 0:00:05]} 14. h4 {[%emt 0:13:34]} g4 {[%emt 0:00:36]} 15. Nd2 {[%emt 0:00:25]} Nb4 {[%emt 0:02:32]} 16. Qc1 {[%emt 0:03:57]} Bf5 {[%emt 0:01:42]} 17. e4 {[%emt 0:00:40]} Bh7 {[%emt 0:00:55]} 18. Be2 {[%emt 0:04:31]} h5 {[%emt 0:04:07]} 19. O-O {[%emt 0:02:58]} e6 {[%emt 0:00:46]} 20. Nb3 {[%emt 0:00:56]} Qb6 {[%emt 0:06:21]} 21. Qe3 {[%emt 0:03:18]} Na6 {[%emt 0:04:36]} 22. Rd7 {[%emt 0:05:00]} Rad8 {[%emt 0:03:11]} 23. Rfd1 {[%emt 0:00:05]} Rxd7 {[%emt 0:02:51]} 24. Rxd7 {[%emt 0:00:05]} Bg6 {[%emt 0:03:02]} 25. Qd2 {[%emt 0:05:47]} Ne8 {[%emt 0:05:03]} 26. Rd8 {[%emt 0:08:17]} Qc7 {[%emt 0:05:37]} 27. Qg5 {[%emt 0:02:57]} Nd6 {[%emt 0:05:29]} 28. Rxf8+ {[%emt 0:00:35]} Kxf8 {[%emt 0:00:05]} 29. Nb5 {[%emt 0:10:46]} Qb6 {[%emt 0:01:31]} 30. Qe5 {[%emt 0:02:46]} Ke7 {[%emt 0:03:36]} 31. Nc3 {[%emt 0:00:49]} Kf8 {[%emt 0:04:54]} 32. Qh8+ {[%emt 0:00:10]} Ke7 {[%emt 0:00:05]} 33. Qe5 {[%emt 0:00:04]} Kf8 {[%emt 0:00:05]} 34. Na4 {[%emt 0:00:57]} Qc6 {[%emt 0:00:10]} 35. Naxc5 {[%emt 0:00:19]} Nxc5 {[%emt 0:00:14]} 36. Nxc5 {[%emt 0:03:34]} Nxe4 {[%emt 0:00:59]} 37. Nxe4 {[%emt 0:01:00]} Qxe4 {[%emt 0:00:14]} 38. Qxe4 {[%emt 0:00:18]} Bxe4 {[%emt 0:00:00]} 39. f3 {[%emt 0:00:52]} gxf3 {[%emt 0:00:10]} 40. gxf3 {[%emt 0:00:18]} Bg6 {[%emt 0:00:19]} 41. Kf2 {[%emt 0:00:36]} Ke7 {[%emt 0:00:28]} 42. Ke3 {[%emt 0:00:14]} e5 {[%emt 0:00:04]} 43. b4 {[%emt 0:01:24]} Kd6 {[%emt 0:00:05]} 44. f4 {[%emt 0:00:55]} f6 {[%emt 0:01:27]} 45. c5+ {[%emt 0:01:00]} Kc7 {[%emt 0:02:26]} 46. a3 {[%emt 0:01:55]} b6 {[%emt 0:00:55]} 47. cxb6+ {[%emt 0:00:32]} Kxb6 {[%emt 0:00:09]} 48. fxe5 {[%emt 0:00:56]} fxe5 {[%emt 0:00:14]} 49. a4 {[%emt 0:04:10]} a5 {[%emt 0:02:00]} 50. b5 {[%emt 0:00:46]} Bc2 {[%emt 0:00:25]} 51. Bxh5 {[%emt 0:00:16]} Bxa4 {[%emt 0:00:04]} 52. Bg6 {[%emt 0:08:30]} Bb3 {[%emt 0:01:00]} 53. h5 {[%emt 0:00:20]} a4 {[%emt 0:00:07]} 54. h6 {[%emt 0:00:20]} Bg8 {[%emt 0:00:13]} 55. h7 {[%emt 0:00:11]} 1/2-1/2

[Event "Eurasia Open Cup 2019"]
[Site "Ekaterinburg"]
[Date "2019.08.06"]
[Round "6.44"]
[White "Pogorelskikh, Sofia"]
[Black "Matsenko, Andrei"]
[Result "0-1"]
[ECO "B06"]
[WhiteElo "2189"]
[BlackElo "2293"]
[Annotator "NA"]
[PlyCount "102"]
[EventDate "2019.07.31"]
[EventType "swiss"]
[EventCountry "RUS"]
[SourceTitle "playchess.com"]
[Source "ChessBase"]
[SourceQuality "1"]
[TimeControl "5400+30"]

1. e4 {[%emt 0:00:00]} c6 {[%emt 0:00:00]} 2. d4 {[%emt 0:00:00]} g6 {[%emt 0:00:00]} 3. Nc3 {[%emt 0:00:10]} Bg7 {[%emt 0:00:15]} 4. Nf3 {[%emt 0:00:46]} d6 {[%emt 0:00:15]} 5. h3 {[%emt 0:02:31]} b5 {[%emt 0:01:41]} 6. Bd3 {[%emt 0:04:55]} Bb7 {[%emt 0:02:38]} 7. O-O {[%emt 0:02:46]} Nd7 {[%emt 0:02:36]} 8. Be3 {[%emt 0:05:26]} a6 {[%emt 0:01:45]} 9. Ne2 {[%emt 0:03:43]} Ngf6 {[%emt 0:04:12]} 10. c3 {[%emt 0:03:12]} O-O {[%emt 0:03:44]} 11. Qd2 {[%emt 0:04:39]} e5 {[%emt 0:03:34]} 12. Bh6 {[%emt 0:04:17]} Re8 {[%emt 0:02:30]} 13. Ng3 {[%emt 0:04:23]} exd4 {[%emt 0:07:33]} 14. Bxg7 {[%emt 0:06:44]} Kxg7 {[%emt 0:00:46]} 15. cxd4 {[%emt 0:00:25]} c5 {[%emt 0:03:43]} 16. d5 {[%emt 0:01:50]} Bc8 {[%emt 0:05:23]} 17. a4 {[%emt 0:02:05]} b4 {[%emt 0:00:25]} 18. b3 {[%emt 0:08:18]} Ng8 {[%emt 0:07:48]} 19. Qc2 {[%emt 0:05:44]} a5 {[%emt 0:06:36]} 20. Nd2 {[%emt 0:02:30]} Ba6 {[%emt 0:02:47]} 21. Bxa6 {[%emt 0:02:15]} Rxa6 {[%emt 0:00:05]} 22. Nc4 {[%emt 0:01:48]} h5 {[%emt 0:12:19]} 23. Rae1 {[%emt 0:05:15]} Ngf6 {[%emt 0:05:34]} 24. Re3 {[%emt 0:04:16]} Nb6 {[%emt 0:02:27]} 25. Rfe1 {[%emt 0:02:46]} Nxc4 {[%emt 0:01:28]} 26. Qxc4 {[%emt 0:00:14]} Ra8 {[%emt 0:03:12]} 27. Qc1 {[%emt 0:04:21]} Rc8 {[%emt 0:03:10]} 28. Nf5+ {[%emt 0:05:29]} gxf5 {[%emt 0:02:06]} 29. Rg3+ {[%emt 0:00:22]} Kh7 {[%emt 0:02:12]} 30. Qg5 {[%emt 0:00:50]} Rg8 {[%emt 0:00:10]} 31. Qxf5+ {[%emt 0:00:29]} Rg6 {[%emt 0:00:26]} 32. e5 {[%emt 0:02:48]} dxe5 {[%emt 0:01:06]} 33. Rxe5 {[%emt 0:00:31]} c4 {[%emt 0:02:19]} 34. Re6 {[%emt 0:05:03]} Qxd5 {[%emt 0:00:14]} 35. Re5 {[%emt 0:02:43]} Qd7 {[%emt 0:01:36]} 36. Qf4 {[%emt 0:01:00]} c3 {[%emt 0:03:17]} 37. Rxg6 {[%emt 0:00:41]} fxg6 {[%emt 0:00:09]} 38. Qxf6 {[%emt 0:00:11]} Rc7 {[%emt 0:00:03]} 39. Re6 {[%emt 0:01:15]} Qg7 {[%emt 0:00:08]} 40. Qxg7+ {[%emt 0:00:28]} Kxg7 {[%emt 0:00:03]} 41. Re1 {[%emt 0:00:05]} Rd7 {[%emt 0:00:53]} 42. Kf1 {[%emt 0:02:11]} Rd2 {[%emt 0:00:08]} 43. Rc1 {[%emt 0:00:24]} Rb2 {[%emt 0:00:11]} 44. g4 {[%emt 0:00:34]} hxg4 {[%emt 0:00:14]} 45. hxg4 {[%emt 0:00:05]} Rxb3 {[%emt 0:00:03]} 46. Ke2 {[%emt 0:00:11]} Ra3 {[%emt 0:00:25]} 47. Kd3 {[%emt 0:00:21]} Rxa4 {[%emt 0:00:08]} 48. Kc4 {[%emt 0:00:19]} Ra2 {[%emt 0:00:10]} 49. f4 {[%emt 0:00:12]} Rb2 {[%emt 0:00:39]} 50. Kb5 {[%emt 0:00:25]} c2 {[%emt 0:00:05]} 51. Kc4 {[%emt 0:00:51]} b3 {[%emt 0:00:10]} 0-1

[Event "Eurasia Open Cup 2019"]
[Site "Ekaterinburg"]
[Date "2019.08.06"]
[Round "6.45"]
[White "Semenova, Elena"]
[Black "Bogachkova, Alena"]
[Result "1-0"]
[ECO "B31"]
[WhiteElo "2286"]
[BlackElo "2085"]
[Annotator "NA"]
[PlyCount "71"]
[EventDate "2019.07.31"]
[EventType "swiss"]
[EventCountry "RUS"]
[SourceTitle "playchess.com"]
[Source "ChessBase"]
[SourceQuality "1"]
[TimeControl "5400+30"]

1. e4 {[%emt 0:00:00]} c5 {[%emt 0:03:06]} 2. Nf3 {[%emt 0:00:00]} Nc6 {[%emt 0:00:06]} 3. Bb5 {[%emt 0:00:00]} g6 {[%emt 0:00:05]} 4. Bxc6 {[%emt 0:00:00]} dxc6 {[%emt 0:00:05]} 5. d3 {[%emt 0:00:00]} Bg7 {[%emt 0:00:05]} 6. h3 {[%emt 0:00:00]} Nf6 {[%emt 0:00:15]} 7. Nc3 {[%emt 0:00:10]} O-O {[%emt 0:01:26]} 8. Bf4 {[%emt 0:01:48]} Ne8 {[%emt 0:09:11]} 9. Qd2 {[%emt 0:10:03]} Nc7 {[%emt 0:00:45]} 10. Bh6 {[%emt 0:04:48]} f6 {[%emt 0:09:09]} 11. Bxg7 {[%emt 0:29:03]} Kxg7 {[%emt 0:02:00]} 12. a3 {[%emt 0:14:17]} e5 {[%emt 0:03:01]} 13. O-O {[%emt 0:06:52]} Ne6 {[%emt 0:06:02]} 14. b4 {[%emt 0:00:20]} Nd4 {[%emt 0:05:50]} 15. Nh2 {[%emt 0:01:55]} Qd6 {[%emt 0:13:39]} 16. Na4 {[%emt 0:02:42]} cxb4 {[%emt 0:07:03]} 17. axb4 {[%emt 0:00:18]} Qc7 {[%emt 0:04:30]} 18. Ra3 {[%emt 0:05:30]} b6 {[%emt 0:02:37]} 19. c3 {[%emt 0:01:32]} Ne6 {[%emt 0:04:05]} 20. Ng4 {[%emt 0:07:11]} Nf4 {[%emt 0:00:28]} 21. Ne3 {[%emt 0:02:16]} Rd8 {[%emt 0:00:59]} 22. Nb2 {[%emt 0:01:03]} Be6 {[%emt 0:02:36]} 23. Rfa1 {[%emt 0:00:58]} Rd7 {[%emt 0:02:10]} 24. Qc2 {[%emt 0:01:33]} Qd8 {[%emt 0:00:41]} 25. Ra6 {[%emt 0:01:53]} f5 {[%emt 0:10:30]} 26. exf5 {[%emt 0:04:23]} gxf5 {[%emt 0:00:59]} 27. Nbc4 {[%emt 0:00:56]} Bxc4 {[%emt 0:01:06]} 28. dxc4 {[%emt 0:02:37]} Qg5 {[%emt 0:10:39]} 29. Qxf5 {[%emt 0:00:33]} Qxf5 {[%emt 0:00:42]} 30. Nxf5+ {[%emt 0:00:03]} Kg6 {[%emt 0:00:24]} 31. Ng3 {[%emt 0:00:30]} Rd3 {[%emt 0:00:29]} 32. R1a3 {[%emt 0:02:16]} h5 {[%emt 0:00:45]} 33. h4 {[%emt 0:00:27]} Rd1+ {[%emt 0:00:32]} 34. Kh2 {[%emt 0:00:08]} Rad8 {[%emt 0:00:30]} 35. Rxa7 {[%emt 0:00:24]} Rc1 {[%emt 0:00:30]} 36. Rc7 {[%emt 0:00:39]} 1-0

[Event "Eurasia Open Cup 2019"]
[Site "Ekaterinburg"]
[Date "2019.08.07"]
[Round "7.1"]
[White "Pridorozhni, Aleksei"]
[Black "Kunin, Vitaly"]
[Result "0-1"]
[ECO "C41"]
[WhiteElo "2586"]
[BlackElo "2527"]
[Annotator "ChessBase"]
[PlyCount "76"]
[EventDate "2019.07.31"]
[EventType "swiss"]
[EventCountry "RUS"]
[SourceTitle "playchess.com"]
[Source "ChessBase"]
[SourceQuality "1"]
[TimeControl "5400+30"]

1. e4 {[%emt 0:00:00]} d6 {[%emt 0:00:00]} 2. d4 {[%emt 0:00:00]} Nf6 {[%emt 0:01:17]} 3. Nc3 {[%emt 0:00:00]} e5 {[%emt 0:00:11]} 4. Nf3 {[%emt 0:00:00]} Nbd7 {[%emt 0:00:08]} 5. Bc4 {[%emt 0:00:00]} Be7 {[%emt 0:00:24]} 6. O-O {[%emt 0:00:24]} O-O {[%emt 0:00:08]} 7. Re1 {[%emt 0:00:20]} a6 {[%emt 0:00:14]} 8. a4 {[%emt 0:00:14]} b6 {[%emt 0:00:34]} 9. b3 {[%emt 0:00:33]} Bb7 {[%emt 0:00:11]} 10. d5 {[%emt 0:05:19]} Ne8 {[%emt 0:00:33]} 11. g3 {[%emt 0:01:14]} g6 {[%emt 0:01:37]} 12. h4 {[%emt 0:05:49]} Ng7 {[%emt 0:00:27]} 13. Ng5 {[%emt 0:00:07]} Bc8 {[%emt 0:00:56]} 14. Na2 {[%emt 0:02:27]} a5 {[%emt 0:04:44]} 15. b4 {[%emt 0:04:52]} Nf6 {[%emt 0:02:08]} 16. bxa5 {[%emt 0:00:51]} bxa5 {[%emt 0:12:11]} 17. Nc3 {[%emt 0:02:41]} h6 {[%emt 0:00:22]} 18. Nf3 {[%emt 0:05:51]} Kh7 {[%emt 0:01:22]} 19. Nh2 {[%emt 0:00:24]} Ng8 {[%emt 0:01:40]} 20. Ra3 {[%emt 0:15:11]} f5 {[%emt 0:01:29]} 21. Nb5 {[%emt 0:00:24]} f4 {[%emt 0:03:17]} 22. Rc3 {[%emt 0:07:40]} Bd7 {[%emt 0:10:04]} 23. Be2 {[%emt 0:04:52]} h5 {[%emt 0:08:41]} 24. Nf3 {[%emt 0:06:55]} Nh6 {[%emt 0:05:23]} 25. Kg2 {[%emt 0:09:15]} Ng4 {[%emt 0:01:41]} 26. Rh1 {[%emt 0:00:18]} c6 {[%emt 0:01:44]} 27. dxc6 {[%emt 0:01:01]} Qb6 {[%emt 0:03:29]} 28. Ng5+ {[%emt 0:12:28]} Bxg5 {[%emt 0:00:08]} 29. Bxg4 {[%emt 0:05:56]} Bxg4 {[%emt 0:01:30]} 30. f3 {[%emt 0:00:34]} fxg3 {[%emt 0:04:36]} 31. Qg1 {[%emt 0:00:22]} Bxf3+ {[%emt 0:00:40]} 32. Rxf3 {[%emt 0:00:37]} Qxc6 {[%emt 0:08:01]} 33. Bxg5 {[%emt 0:00:29]} Qxc2+ {[%emt 0:00:05]} 34. Kxg3 {[%emt 0:03:11]} Rxf3+ {[%emt 0:03:24]} 35. Kxf3 {[%emt 0:00:07]} Rf8+ {[%emt 0:00:10]} 36. Ke3 {[%emt 0:00:02]} d5 {[%emt 0:00:05]} 37. Be7 {[%emt 0:00:16]} Rf4 {[%emt 0:00:42]} 38. Rh2 {[%emt 0:05:52]} Rxe4+ {[%emt 0:02:18]} 0-1

[Event "Eurasia Open Cup 2019"]
[Site "Ekaterinburg"]
[Date "2019.08.07"]
[Round "7.3"]
[White "Khismatullin, Denis"]
[Black "Sargsyan, Shant"]
[Result "0-1"]
[ECO "A28"]
[WhiteElo "2618"]
[BlackElo "2529"]
[Annotator "ChessBase"]
[PlyCount "106"]
[EventDate "2019.07.31"]
[EventType "swiss"]
[EventCountry "RUS"]
[SourceTitle "playchess.com"]
[Source "ChessBase"]
[SourceQuality "1"]
[TimeControl "5400+30"]

1. c4 {[%emt 0:02:07]} e5 {[%emt 0:00:26]} 2. Nc3 {[%emt 0:00:54]} Nf6 {[%emt 0:00:34]} 3. Nf3 {[%emt 0:00:07]} Nc6 {[%emt 0:00:42]} 4. e3 {[%emt 0:00:36]} Bb4 {[%emt 0:00:43]} 5. Nd5 {[%emt 0:00:00]} e4 {[%emt 0:01:20]} 6. Ng1 {[%emt 0:00:50]} O-O {[%emt 0:01:00]} 7. a3 {[%emt 0:00:05]} Bd6 {[%emt 0:03:06]} 8. Nxf6+ {[%emt 0:00:56]} Qxf6 {[%emt 0:00:18]} 9. f4 {[%emt 0:00:44]} exf3 {[%emt 0:05:30]} 10. Nxf3 {[%emt 0:00:51]} Ne5 {[%emt 0:05:14]} 11. d4 {[%emt 0:01:05]} Nxf3+ {[%emt 0:01:12]} 12. Qxf3 {[%emt 0:00:37]} Be7 {[%emt 0:01:45]} 13. Bd3 {[%emt 0:04:45]} c6 {[%emt 0:03:04]} 14. Bd2 {[%emt 0:06:09]} d5 {[%emt 0:07:58]} 15. cxd5 {[%emt 0:04:49]} Qxf3 {[%emt 0:00:39]} 16. gxf3 {[%emt 0:00:07]} cxd5 {[%emt 0:00:31]} 17. Rc1 {[%emt 0:04:29]} Bd7 {[%emt 0:02:19]} 18. Rc7 {[%emt 0:09:08]} Bh4+ {[%emt 0:01:20]} 19. Ke2 {[%emt 0:00:00]} Bc6 {[%emt 0:00:11]} 20. Bf5 {[%emt 0:11:29]} Bb5+ {[%emt 0:08:34]} 21. Bd3 {[%emt 0:02:28]} Bc6 {[%emt 0:00:55]} 22. Rc1 {[%emt 0:00:39]} Bd8 {[%emt 0:03:21]} 23. R1xc6 {[%emt 0:01:26]} bxc6 {[%emt 0:00:05]} 24. Rxc6 {[%emt 0:00:00]} Bb6 {[%emt 0:01:28]} 25. Bf5 {[%emt 0:05:12]} g6 {[%emt 0:04:14]} 26. Bh3 {[%emt 0:03:07]} Rfe8 {[%emt 0:05:45]} 27. Kd3 {[%emt 0:05:32]} f5 {[%emt 0:01:04]} 28. Rc3 {[%emt 0:02:12]} Rec8 {[%emt 0:03:31]} 29. Rb3 {[%emt 0:17:59]} Rab8 {[%emt 0:00:51]} 30. f4 {[%emt 0:03:01]} Bc7 {[%emt 0:02:11]} 31. Rxb8 {[%emt 0:00:33]} Rxb8 {[%emt 0:00:13]} 32. b4 {[%emt 0:01:27]} Kf7 {[%emt 0:00:17]} 33. Bf1 {[%emt 0:00:42]} g5 {[%emt 0:03:14]} 34. fxg5 {[%emt 0:04:46]} Bxh2 {[%emt 0:00:17]} 35. Be2 {[%emt 0:01:45]} Rg8 {[%emt 0:01:59]} 36. a4 {[%emt 0:01:58]} Rxg5 {[%emt 0:01:07]} 37. b5 {[%emt 0:00:20]} Rg1 {[%emt 0:04:27]} 38. a5 {[%emt 0:03:43]} Ra1 {[%emt 0:02:10]} 39. Bb4 {[%emt 0:00:37]} Bc7 {[%emt 0:02:00]} 40. a6 {[%emt 0:00:15]} Ba5 {[%emt 0:04:26]} 41. Bxa5 {[%emt 0:01:52]} Rxa5 {[%emt 0:00:00]} 42. Kc3 {[%emt 0:00:30]} Ra2 {[%emt 0:02:13]} 43. Bh5+ {[%emt 0:00:36]} Ke6 {[%emt 0:00:20]} 44. Kb3 {[%emt 0:00:29]} Ra1 {[%emt 0:00:31]} 45. Kc2 {[%emt 0:01:01]} Ra5 {[%emt 0:01:17]} 46. Be2 {[%emt 0:00:00]} Ra2+ {[%emt 0:00:05]} 47. Kd1 {[%emt 0:00:07]} Rb2 {[%emt 0:01:19]} 48. Ke1 {[%emt 0:00:49]} f4 {[%emt 0:01:09]} 49. Bg4+ {[%emt 0:00:34]} Kf6 {[%emt 0:01:20]} 50. exf4 {[%emt 0:00:36]} Rxb5 {[%emt 0:00:51]} 51. Kf2 {[%emt 0:00:48]} Rb3 {[%emt 0:00:56]} 52. Ke2 {[%emt 0:00:05]} Rc3 {[%emt 0:01:06]} 53. Kd2 {[%emt 0:00:55]} Rc6 {[%emt 0:00:10]} 0-1

[Event "Eurasia Open Cup 2019"]
[Site "Ekaterinburg"]
[Date "2019.08.07"]
[Round "7.4"]
[White "Kokarev, Dmitry"]
[Black "Nesterov, Arseniy"]
[Result "1-0"]
[ECO "A20"]
[WhiteElo "2607"]
[BlackElo "2451"]
[Annotator "ChessBase"]
[PlyCount "75"]
[EventDate "2019.07.31"]
[EventType "swiss"]
[EventCountry "RUS"]
[SourceTitle "playchess.com"]
[Source "ChessBase"]
[SourceQuality "1"]
[TimeControl "5400+30"]

1. c4 {[%emt 0:00:00]} e5 {[%emt 0:00:00]} 2. d3 {[%emt 0:00:00]} Nf6 {[%emt 0:01:05]} 3. a3 {[%emt 0:00:00]} d6 {[%emt 0:01:47]} 4. g3 {[%emt 0:00:41]} g6 {[%emt 0:00:11]} 5. Bg2 {[%emt 0:00:36]} Bg7 {[%emt 0:00:08]} 6. Nc3 {[%emt 0:00:07]} O-O {[%emt 0:00:17]} 7. b4 {[%emt 0:00:54]} Re8 {[%emt 0:04:20]} 8. e4 {[%emt 0:00:46]} a5 {[%emt 0:02:22]} 9. Rb1 {[%emt 0:00:37]} axb4 {[%emt 0:03:19]} 10. axb4 {[%emt 0:00:08]} Bg4 {[%emt 0:03:16]} 11. Nge2 {[%emt 0:01:16]} Qc8 {[%emt 0:04:38]} 12. h3 {[%emt 0:05:22]} Be6 {[%emt 0:00:24]} 13. Bg5 {[%emt 0:00:01]} h6 {[%emt 0:01:24]} 14. Be3 {[%emt 0:00:38]} c6 {[%emt 0:05:07]} 15. Qd2 {[%emt 0:00:47]} h5 {[%emt 0:03:43]} 16. Bh6 {[%emt 0:03:25]} Bh8 {[%emt 0:17:37]} 17. f4 {[%emt 0:03:41]} exf4 {[%emt 0:06:09]} 18. gxf4 {[%emt 0:01:57]} Kh7 {[%emt 0:09:03]} 19. Bg5 {[%emt 0:00:35]} Ng8 {[%emt 0:03:04]} 20. f5 {[%emt 0:04:57]} Bxf5 {[%emt 0:00:34]} 21. exf5 {[%emt 0:01:58]} Qxf5 {[%emt 0:01:50]} 22. Ne4 {[%emt 0:08:20]} d5 {[%emt 0:11:19]} 23. Rf1 {[%emt 0:00:58]} Qd7 {[%emt 0:01:34]} 24. cxd5 {[%emt 0:03:35]} f5 {[%emt 0:02:31]} 25. Nc5 {[%emt 0:04:44]} Qf7 {[%emt 0:00:15]} 26. Kf2 {[%emt 0:01:30]} Ne7 {[%emt 0:03:42]} 27. Nf4 {[%emt 0:03:46]} Bd4+ {[%emt 0:01:50]} 28. Kg3 {[%emt 0:00:09]} Nxd5 {[%emt 0:00:31]} 29. Bxd5 {[%emt 0:02:41]} cxd5 {[%emt 0:00:01]} 30. Rbe1 {[%emt 0:00:58]} Nc6 {[%emt 0:00:12]} 31. Rxe8 {[%emt 0:08:08]} Rxe8 {[%emt 0:00:05]} 32. Re1 {[%emt 0:00:11]} Be5 {[%emt 0:01:56]} 33. d4 {[%emt 0:04:27]} Bxd4 {[%emt 0:02:53]} 34. Rxe8 {[%emt 0:03:46]} Qxe8 {[%emt 0:00:03]} 35. Nce6 {[%emt 0:00:14]} Be5 {[%emt 0:02:18]} 36. Qxd5 {[%emt 0:01:22]} b5 {[%emt 0:04:16]} 37. Kg2 {[%emt 0:06:11]} Qa8 {[%emt 0:01:36]} 38. Nd8 {[%emt 0:01:16]} 1-0

[Event "Eurasia Open Cup 2019"]
[Site "Ekaterinburg"]
[Date "2019.08.07"]
[Round "7.5"]
[White "Shaposhnikov, Evgeny"]
[Black "Shubin, Kirill"]
[Result "1/2-1/2"]
[ECO "E14"]
[WhiteElo "2575"]
[BlackElo "2426"]
[Annotator "ChessBase"]
[PlyCount "178"]
[EventDate "2019.07.31"]
[EventType "swiss"]
[EventCountry "RUS"]
[SourceTitle "playchess.com"]
[Source "ChessBase"]
[SourceQuality "1"]
[TimeControl "5400+30"]

1. Nf3 {[%emt 0:06:46]} Nf6 {[%emt 0:00:00]} 2. d4 {[%emt 0:00:04]} e6 {[%emt 0:00:12]} 3. e3 {[%emt 0:04:13]} b6 {[%emt 0:00:00]} 4. Bd3 {[%emt 0:00:00]} Bb7 {[%emt 0:00:00]} 5. O-O {[%emt 0:02:40]} d5 {[%emt 0:02:13]} 6. c4 {[%emt 0:13:08]} Bd6 {[%emt 0:00:00]} 7. b3 {[%emt 0:00:00]} Nbd7 {[%emt 0:00:00]} 8. cxd5 {[%emt 0:00:07]} exd5 {[%emt 0:00:08]} 9. Ba3 {[%emt 0:00:05]} Bxa3 {[%emt 0:05:00]} 10. Nxa3 {[%emt 0:00:19]} O-O {[%emt 0:00:00]} 11. Rc1 {[%emt 0:00:10]} c5 {[%emt 0:04:47]} 12. Qe2 {[%emt 0:00:40]} a6 {[%emt 0:04:06]} 13. Rfd1 {[%emt 0:00:10]} Qe7 {[%emt 0:00:42]} 14. Nb1 {[%emt 0:00:32]} Ne4 {[%emt 0:05:28]} 15. Nc3 {[%emt 0:00:04]} Rfe8 {[%emt 0:03:17]} 16. Na4 {[%emt 0:00:58]} Qf6 {[%emt 0:09:02]} 17. dxc5 {[%emt 0:02:45]} Ndxc5 {[%emt 0:00:44]} 18. Qb2 {[%emt 0:02:16]} Qxb2 {[%emt 0:08:32]} 19. Nxb2 {[%emt 0:00:05]} Rac8 {[%emt 0:02:43]} 20. Nd4 {[%emt 0:00:48]} b5 {[%emt 0:10:07]} 21. b4 {[%emt 0:03:56]} Ne6 {[%emt 0:01:05]} 22. Ne2 {[%emt 0:08:51]} Nd6 {[%emt 0:05:04]} 23. Bb1 {[%emt 0:16:53]} Nc4 {[%emt 0:02:17]} 24. Nd3 {[%emt 0:00:09]} g5 {[%emt 0:04:06]} 25. Nd4 {[%emt 0:02:56]} Nxd4 {[%emt 0:01:12]} 26. exd4 {[%emt 0:00:46]} Re7 {[%emt 0:01:16]} 27. Re1 {[%emt 0:02:19]} Rce8 {[%emt 0:00:42]} 28. Rxe7 {[%emt 0:00:01]} Rxe7 {[%emt 0:00:32]} 29. Nc5 {[%emt 0:02:26]} a5 {[%emt 0:05:16]} 30. bxa5 {[%emt 0:00:49]} Nxa5 {[%emt 0:00:11]} 31. Bd3 {[%emt 0:00:18]} Bc6 {[%emt 0:02:09]} 32. f3 {[%emt 0:00:44]} Ra7 {[%emt 0:01:57]} 33. Kf2 {[%emt 0:02:10]} Nb7 {[%emt 0:03:23]} 34. Bb1 {[%emt 0:01:16]} Nd6 {[%emt 0:00:13]} 35. Ne6 {[%emt 0:05:45]} fxe6 {[%emt 0:04:47]} 36. Rxc6 {[%emt 0:00:43]} Rd7 {[%emt 0:00:21]} 37. Rb6 {[%emt 0:00:51]} Kf8 {[%emt 0:01:10]} 38. Bxh7 {[%emt 0:01:29]} Ke7 {[%emt 0:00:32]} 39. Ra6 {[%emt 0:01:35]} Rc7 {[%emt 0:00:56]} 40. Bd3 {[%emt 0:03:13]} Rc3 {[%emt 0:01:54]} 41. Ke2 {[%emt 0:00:29]} Nc4 {[%emt 0:02:09]} 42. Ra7+ {[%emt 0:00:19]} Kf6 {[%emt 0:00:35]} 43. Rb7 {[%emt 0:02:17]} Ra3 {[%emt 0:00:15]} 44. Bb1 {[%emt 0:02:43]} Nd6 {[%emt 0:01:00]} 45. Rc7 {[%emt 0:01:13]} b4 {[%emt 0:00:56]} 46. Rc5 {[%emt 0:01:25]} b3 {[%emt 0:00:50]} 47. axb3 {[%emt 0:01:23]} Rxb3 {[%emt 0:03:53]} 48. Bd3 {[%emt 0:00:44]} Nf5 {[%emt 0:00:02]} 49. Bxf5 {[%emt 0:00:36]} Kxf5 {[%emt 0:02:02]} 50. Rc2 {[%emt 0:00:00]} Ra3 {[%emt 0:00:02]} 51. Rd2 {[%emt 0:00:45]} Rb3 {[%emt 0:01:26]} 52. Kf2 {[%emt 0:00:12]} Ra3 {[%emt 0:00:11]} 53. h3 {[%emt 0:00:10]} Rb3 {[%emt 0:00:25]} 54. Kg3 {[%emt 0:00:18]} Rb8 {[%emt 0:01:17]} 55. Rd1 {[%emt 0:00:08]} Rb2 {[%emt 0:01:36]} 56. Rh1 {[%emt 0:01:49]} Rd2 {[%emt 0:00:18]} 57. h4 {[%emt 0:01:30]} Rxd4 {[%emt 0:01:06]} 58. h5 {[%emt 0:00:12]} Ra4 {[%emt 0:00:10]} 59. h6 {[%emt 0:00:27]} Ra8 {[%emt 0:00:36]} 60. h7 {[%emt 0:00:03]} Rh8 {[%emt 0:00:00]} 61. Rh6 {[%emt 0:00:00]} d4 {[%emt 0:00:08]} 62. Kf2 {[%emt 0:00:49]} g4 {[%emt 0:00:00]} 63. fxg4+ {[%emt 0:02:37]} Kxg4 {[%emt 0:00:40]} 64. Rxe6 {[%emt 0:06:12]} Rxh7 {[%emt 0:00:03]} 65. Re4+ {[%emt 0:01:06]} Kg5 {[%emt 0:00:04]} 66. Rxd4 {[%emt 0:00:03]} Ra7 {[%emt 0:00:03]} 67. g3 {[%emt 0:00:04]} Ra2+ {[%emt 0:00:03]} 68. Kf3 {[%emt 0:00:10]} Ra3+ {[%emt 0:01:00]} 69. Kg2 {[%emt 0:00:04]} Ra1 {[%emt 0:00:07]} 70. Rb4 {[%emt 0:00:01]} Rc1 {[%emt 0:00:28]} 71. Rb8 {[%emt 0:00:04]} Rc4 {[%emt 0:00:07]} 72. Kh3 {[%emt 0:00:07]} Kg6 {[%emt 0:01:16]} 73. Rb6+ {[%emt 0:00:02]} Kg7 {[%emt 0:00:40]} 74. g4 {[%emt 0:00:05]} Rc5 {[%emt 0:00:07]} 75. Kh4 {[%emt 0:00:04]} Ra5 {[%emt 0:00:08]} 76. Rb1 {[%emt 0:00:03]} Kg6 {[%emt 0:00:13]} 77. Rb7 {[%emt 0:00:14]} Rc5 {[%emt 0:00:37]} 78. Rb6+ {[%emt 0:00:09]} Kg7 {[%emt 0:00:09]} 79. g5 {[%emt 0:00:10]} Rc1 {[%emt 0:00:04]} 80. Rb7+ {[%emt 0:00:05]} Kg6 {[%emt 0:00:03]} 81. Rb6+ {[%emt 0:00:06]} Kg7 {[%emt 0:00:04]} 82. Rb7+ {[%emt 0:00:02]} Kg6 {[%emt 0:00:06]} 83. Rb6+ {[%emt 0:00:03]} Kg7 {[%emt 0:00:04]} 84. Rb7+ {[%emt 0:00:00]} Kg6 {[%emt 0:00:03]} 85. Rb6+ {[%emt 0:00:07]} Kg7 {[%emt 0:00:03]} 86. Rb7+ {[%emt 0:00:04]} Kg6 {[%emt 0:00:03]} 87. Rb6+ {[%emt 0:00:04]} Kg7 {[%emt 0:00:03]} 88. Rb7+ {[%emt 0:00:00]} Kg6 {[%emt 0:00:03]} 89. Rb6+ {[%emt 0:00:07]} Kg7 {[%emt 0:00:03]} 1/2-1/2